lending/lending_fUSD_20240411
["ID","MTS","AMOUNT","RATE_DAILY","PERIOD"]
[322126162,1712820633409,-150.0,0.00029775,2]
[322126163,1712820633419,-150.0,0.00029775,2]
[322126164,1712820633429,-150.0,0.00029777,2]
[322126165,1712820633438,-280.0,0.0002978,5]
[322126166,1712820633448,-150.0,0.00029781,2]
[322126167,1712820633457,-150.0,0.00029781,2]
[322126168,1712820633467,-150.0,0.00029782,2]
[322126169,1712820633476,-150.0,0.00029785,2]
[322126170,1712820633486,-27.56891117,0.00029785,2]
[322126171,1712820633525,-122.43108883,0.00029785,2]
[322126172,1712820633535,-150.0,0.00029792,2]
[322126173,1712820633545,-150.0,0.00029793,2]
[322126174,1712820633555,-150.0,0.00029793,2]
[322126175,1712820633566,-824.3252,0.00029797,2]
[322126176,1712820633576,-150.0,0.00029797,2]
[322126177,1712820633586,-3310.60316006,0.00029797,2]
[322126178,1712820633596,-150.0,0.00029799,2]
[322126179,1712820633606,-172.27,0.000298,2]
[322126180,1712820633618,-1380.73323223,0.000298,3]
[322126181,1712820633634,-839.26676777,0.000298,3]
[322126182,1712820633643,-150.0,0.000298,2]
[322126183,1712820633652,-7937.00918708,0.000298,2]
[322126184,1712820633662,-151.38857112,0.000298,2]
[322126185,1712820633671,-303.15770896,0.00029802,2]
[322126186,1712820633681,-150.0,0.00029802,2]
[322126187,1712820633690,-150.0,0.00029804,2]
[322126188,1712820633701,-1531.55770352,0.00029808,2]
[322126189,1712820633710,-150.0,0.00029809,2]
[322126190,1712820633719,-150.0,0.00029809,2]
[322126191,1712820633729,-150.0,0.0002981,2]
[322126192,1712820633739,-150.0,0.00029811,2]
[322126193,1712820633748,-150.0,0.00029812,2]
[322126194,1712820633758,-150.0,0.00029814,2]
[322126195,1712820633767,-150.0,0.00029815,2]
[322126196,1712820633777,-150.0,0.00029819,2]
[322126197,1712820633787,-150.0,0.00029819,2]
[322126198,1712820633950,-150.0,0.00029822,2]
[322126199,1712820633959,-150.0,0.00029826,2]
[322126200,1712820633969,-417.89394082,0.00029833,2]
[322126201,1712820633978,-150.0,0.00029833,2]
[322126202,1712820633987,-150.0,0.00029834,2]
[322126203,1712820633997,-150.0,0.00029834,2]
[322126204,1712820634006,-150.0,0.00029834,2]
[322126205,1712820634016,-150.0,0.00029836,2]
[322126206,1712820634024,-150.0,0.00029836,2]
[322126207,1712820634034,-1500.0,0.00029838,2]
[322126208,1712820634043,-150.0,0.00029839,2]
[322126209,1712820634052,-150.0,0.0002984,2]
[322126210,1712820634061,-150.0,0.00029841,2]
[322126211,1712820634070,-150.0,0.00029843,2]
[322126212,1712820634079,-150.0,0.00029844,2]
[322126213,1712820634088,-811.78566031,0.00029848,2]
[322126218,1712820637901,-319.39308481,0.000298,2]
[322126219,1712820637917,-688.21433969,0.00029848,2]
[322126220,1712820637932,-150.0,0.00029852,2]
[322126221,1712820637947,-150.0,0.00029854,2]
[322126222,1712820637962,-1011.38500514,0.00029856,2]
[322126224,1712820638088,-488.61499486,0.00029856,2]
[322126225,1712820638105,-150.0,0.00029858,2]
[322126226,1712820638120,-150.0,0.00029858,2]
[322126227,1712820638136,-1500.0,0.0002986,2]
[322126229,1712820638151,-150.0,0.00029861,2]
[322126230,1712820638167,-150.0,0.00029862,2]
[322126231,1712820638187,-150.0,0.00029862,2]
[322126232,1712820638211,-150.0,0.00029863,2]
[322126233,1712820638228,-150.0,0.00029863,2]
[322126234,1712820638243,-65.22494444,0.00029867,2]
[322126247,1712820638654,-84.77505556,0.00029867,2]
[322126249,1712820638673,-150.0,0.00029868,2]
[322126250,1712820638690,-150.0,0.00029871,2]
[322126251,1712820638706,-300.0,0.00029872,2]
[322126252,1712820638917,-150.0,0.00029875,2]
[322126253,1712820638948,-150.0,0.00029878,2]
[322126254,1712820638958,-150.0,0.00029879,2]
[322126255,1712820638968,-300.0,0.00029883,2]
[322126256,1712820638978,-1500.0,0.00029883,2]
[322126257,1712820638987,-150.0,0.00029885,2]
[322126258,1712820638996,-150.0,0.00029886,2]
[322126259,1712820639009,-150.0,0.00029886,2]
[322126260,1712820639018,-150.0,0.00029887,2]
[322126261,1712820639027,-150.0,0.00029887,2]
[322126262,1712820639036,-150.0,0.00029892,2]
[322126263,1712820639045,-150.0,0.00029893,2]
[322126264,1712820639054,-150.0,0.00029893,2]
[322126265,1712820639063,-150.0,0.00029895,2]
[322126266,1712820639073,-84745.64826242,0.00029897,2]
[322126267,1712820639617,-7856.37763758,0.00029897,2]
[322126268,1712820639627,-151.3744,0.00029897,2]
[322126269,1712820639637,-150.0,0.00029899,2]
[322126270,1712820639647,-1178.7148,0.000299,2]
[322126272,1712820639656,-34085.10599271,0.000299,2]
[322126275,1712820639725,-4976.23,0.000299,2]
[322126279,1712820640701,-393.47850105,0.000298,4]
[322126280,1712820640710,-3178.30079896,0.000299,2]
[322126281,1712820640738,-540.63896328,0.000299,2]
[322126282,1712820640749,-678.52014016,0.000299,2]
[322126283,1712820640773,-8798.0,0.000299,2]
[322126284,1712820640794,-7517.67710489,0.000299,2]
[322126285,1712820640803,-10311.76414511,0.000299,4]
[322126311,1712820643146,-7370.57499925,0.000299,4]
[322126312,1712820643267,-559599.81128885,0.000299,4]
[322126313,1712820643382,-53961.79872263,0.000299,4]
[322126314,1712820643445,-7117.0,0.000299,4]
[322126315,1712820643505,-706.42908977,0.000299,4]
[322126348,1712820646141,-562.74532621,0.00029899,2]
[322126350,1712820646150,-783.81607988,0.00029899,2]
[322126352,1712820646160,-7614.07779259,0.00029899,2]
[322126354,1712820646173,-4589.36080132,0.00029899,2]
[322126356,1712820646188,-699.44880002,0.00029899,2]
[322126364,1712820646263,-4265.17455051,0.00029899,2]
[322126372,1712820646325,-873.88559492,0.00029899,2]
[322126400,1712821054010,213.57,0.00027322,120]
[322126408,1712821832666,-525.729419,0.00019097,2]
[322126409,1712821832676,-304.75740355,0.00019097,2]
[322126410,1712821832685,-582.36037745,0.00019097,2]
[322126411,1712821832698,-154.4910267,0.00019097,2]
[322126412,1712821832707,-532.19109069,0.00019098,2]
[322126413,1712821832717,-3404.63074119,0.00019195,2]
[322126414,1712821832726,-4549.2899,0.00019298,2]
[322126415,1712821832735,-159.64981465,0.00019398,2]
[322126416,1712821832745,-262.33172171,0.00019699,2]
[322126417,1712821832755,-4351.84536889,0.000197,2]
[322126418,1712821832764,-196.0342,0.00019788,2]
[322126419,1712821832774,-150.0,0.0001989,2]
[322126420,1712821832783,-150.99,0.0001989,2]
[322126421,1712821832793,-2035.70259827,0.00020007,2]
[322126422,1712821832802,-389.32,0.00020007,2]
[322126423,1712821832812,-250.0,0.00021,3]
[322126424,1712821832821,-549.21,0.00021,2]
[322126425,1712821832831,-159.64981463,0.00021478,2]
[322126426,1712821832841,-3398.0,0.000216,2]
[322126427,1712821832850,-562.74532621,0.00022,2]
[322126428,1712821832860,-783.81607988,0.00022,2]
[322126429,1712821832870,-337.49,0.00022999,2]
[322126430,1712821832879,-300.0,0.00023,3]
[322126431,1712821832889,-307.11461416,0.00023,2]
[322126432,1712821832900,-159.64981463,0.00023559,2]
[322126433,1712821832909,-224.65965367,0.00024,2]
[322126434,1712821832919,-6668.92495843,0.0002402,2]
[322126435,1712821832928,-1041.62069966,0.00024029,2]
[322126436,1712821832938,-11256.25766506,0.00024029,2]
[322126437,1712821832947,-982.874,0.0002403,2]
[322126438,1712821832961,-467.648,0.0002403,2]
[322126439,1712821832971,-1426.38,0.0002403,2]
[322126440,1712821832980,-1958.914,0.0002403,2]
[322126441,1712821832990,-1161.481,0.0002403,2]
[322126442,1712821832999,-152.224,0.0002403,2]
[322126444,1712821833009,-2338.162,0.0002403,2]
[322126446,1712821833019,-590.107,0.0002403,2]
[322126448,1712821833029,-214.0,0.0002403,2]
[322126449,1712821833039,-442.0,0.0002403,2]
[322126450,1712821833049,-354.0,0.0002403,2]
[322126451,1712821833060,-5754.811,0.0002403,2]
[322126452,1712821833070,-4795.0,0.0002403,2]
[322126453,1712821833082,-26491.555,0.0002403,2]
[322126454,1712821833093,-2485.497,0.0002403,2]
[322126455,1712821833102,-449.692,0.0002403,2]
[322126456,1712821833113,-323.77,0.00024609,2]
[322126457,1712821833123,-2223.99943328,0.000248,2]
[322126458,1712821833133,-350.0,0.00025,3]
[322126459,1712821833143,-2603.91013845,0.00025,2]
[322126460,1712821833153,-155.0,0.00025,2]
[322126461,1712821833163,-2751.0,0.00025122,2]
[322126462,1712821833175,-250.0,0.00025279,2]
[322126463,1712821833186,-250.0,0.00025594,2]
[322126464,1712821833196,-159.64981463,0.00025639,2]
[322126465,1712821833207,-250.0,0.00025782,2]
[322126466,1712821833218,-1003.4,0.0002585,2]
[322126467,1712821833229,-300.0,0.000259,10]
[322126468,1712821833242,-158.4,0.0002591,2]
[322126469,1712821833253,-1471.73797299,0.00025956,2]
[322126470,1712821833264,-158.4,0.00025994,2]
[322126471,1712821833276,-158.4,0.00026079,2]
[322126472,1712821833285,-239.77,0.00026129,2]
[322126473,1712821833296,-158.4,0.00026163,2]
[322126474,1712821833307,-326.2,0.00026224,2]
[322126475,1712821833318,-158.4,0.00026247,2]
[322126476,1712821833330,-500.0,0.00026317,2]
[322126477,1712821833341,-158.4,0.00026332,2]
[322126478,1712821833352,-158.4,0.00026416,2]
[322126479,1712821833362,-1000.0,0.00026479,2]
[322126480,1712821833373,-158.4,0.00026501,2]
[322126481,1712821833386,-181.28885952,0.00026512,2]
[322126482,1712821833396,-1000.0,0.0002652,2]
[322126483,1712821833406,-158.4,0.00026585,2]
[322126484,1712821833418,-170.1773393,0.00026615,2]
[322126485,1712821833428,-158.4,0.00026669,2]
[322126486,1712821833439,-158.4,0.00026754,2]
[322126487,1712821833449,-158.4,0.00026838,2]
[322126488,1712821833461,-269.89772988,0.0002687,2]
[322126489,1712821833472,-323.77,0.00026873,2]
[322126490,1712821833483,-178.83426695,0.00026882,2]
[322126491,1712821833493,-325.25761557,0.00026908,2]
[322126492,1712821833503,-158.4,0.00026922,2]
[322126493,1712821833513,-2427.2305,0.0002693,2]
[322126494,1712821833525,-400.0,0.00027,3]
[322126495,1712821833541,-269.89772988,0.00027004,2]
[322126496,1712821833552,-158.4,0.00027007,2]
[322126497,1712821833563,-164.38887046,0.00027019,2]
[322126498,1712821833575,-158.4,0.00027091,2]
[322126499,1712821833585,-154.0816385,0.00027162,2]
[322126500,1712821833596,-158.4,0.00027176,2]
[322126501,1712821833606,-157.21377486,0.00027204,2]
[322126502,1712821833617,-500.0,0.00027206,2]
[322126503,1712821833629,-152.6758148,0.00027209,2]
[322126504,1712821833641,-181.28885952,0.00027211,2]
[322126505,1712821833651,-156.75841592,0.00027212,2]
[322126506,1712821833662,-158.4,0.0002726,2]
[322126507,1712821833675,-169.53966937,0.00027289,2]
[322126508,1712821833685,-219.27924259,0.00027322,2]
[322126509,1712821833695,-2209.24532718,0.00027322,2]
[322126510,1712821833706,-333.98236234,0.00027322,7]
[322126511,1712821833717,-155.0,0.00027322,2]
[322126512,1712821833727,-326.73064045,0.00027322,2]
[322126513,1712821833737,-155.0000122,0.00027329,2]
[322126514,1712821833748,-156.14,0.00027397,2]
[322126515,1712821833758,-152.6758148,0.00027401,2]
[322126516,1712821833769,-153.58,0.00027569,2]
[322126517,1712821833778,-289.65712224,0.00027701,2]
[322126518,1712821833788,-159.64981463,0.0002772,2]
[322126519,1712821833798,-151.28022715,0.00027735,2]
[322126520,1712821833807,-151.46810088,0.00027846,2]
[322126521,1712821833818,-154.14489771,0.00027851,2]
[322126522,1712821833828,-169.53966937,0.00027915,2]
[322126523,1712821833838,-269.89772988,0.00027954,2]
[322126524,1712821833848,-150.0,0.00028048,2]
[322126525,1712821833860,-181.28885952,0.00028148,2]
[322126526,1712821833870,-150.0,0.00028226,2]
[322126527,1712821833880,-181.28885952,0.00028266,2]
[322126528,1712821833889,-1289.8622422,0.00028403,2]
[322126529,1712821833899,-2206.81983108,0.00028403,2]
[322126530,1712821833909,-152.6758148,0.00028425,2]
[322126531,1712821833921,-168.07,0.00028487,2]
[322126532,1712821833931,-202.74,0.00028568,2]
[322126533,1712821833940,-178.83426695,0.00028572,2]
[322126534,1712821833950,-269.89772988,0.00028596,2]
[322126535,1712821833960,-153.94987676,0.0002866,2]
[322126536,1712821833970,-169.53966937,0.00028688,2]
[322126537,1712821833980,-335.0,0.0002869,2]
[322126538,1712821833990,-181.28885952,0.00028709,2]
[322126539,1712821834000,-150.0,0.00028773,2]
[322126540,1712821834010,-163.92560824,0.00028842,2]
[322126541,1712821834020,-170.1773393,0.00028842,2]
[322126542,1712821834030,-157.041116,0.00028848,8]
[322126543,1712821834039,-150.0,0.00028873,2]
[322126544,1712821834050,-166.66666666,0.00028925,2]
[322126545,1712821834059,-157.041116,0.00028948,5]
[322126546,1712821834069,-326.2,0.00028964,2]
[322126547,1712821834079,-150.0,0.00028984,2]
[322126548,1712821834089,-155.28171799,0.00028998,2]
[322126549,1712821834099,-5668.45604773,0.00028999,2]
[322126550,1712821834109,-2394.47542078,0.00029,10]
[322126551,1712821834138,-882.33461522,0.00029,10]
[322126552,1712821834152,-4723.189964,0.00029,10]
[322126553,1712821834162,-6745.48276377,0.00029,2]
[322126554,1712821834172,-450.0,0.00029,3]
[322126555,1712821834182,-157.041116,0.00029048,6]
[322126556,1712821834192,-150.0,0.00029095,2]
[322126557,1712821834202,-150.0,0.00029129,2]
[322126558,1712821834211,-323.77,0.00029137,2]
[322126559,1712821834221,-157.041116,0.00029148,6]
[322126560,1712821834231,-150.0,0.0002915,2]
[322126561,1712821834241,-157.041116,0.00029248,7]
[322126562,1712821834251,-157.041116,0.00029348,7]
[322126563,1712821834261,-150.0,0.00029361,2]
[322126564,1712821834271,-150.0,0.00029369,2]
[322126565,1712821834280,-150.0,0.00029378,2]
[322126566,1712821834290,-300.0,0.00029388,2]
[322126567,1712821834301,-150.0,0.00029389,2]
[322126568,1712821834311,-300.0,0.00029406,2]
[322126569,1712821834321,-269.89772988,0.00029407,2]
[322126570,1712821834331,-150.0,0.00029425,2]
[322126571,1712821834341,-150.0,0.00029426,2]
[322126572,1712821834351,-150.0,0.00029429,2]
[322126573,1712821834372,-150.0,0.0002943,2]
[322126574,1712821834382,-150.0,0.00029432,2]
[322126575,1712821834392,-300.0,0.00029433,2]
[322126576,1712821834402,-150.0,0.00029433,2]
[322126577,1712821834412,-150.0,0.00029446,2]
[322126578,1712821834423,-157.041116,0.00029448,9]
[322126579,1712821834433,-150.0,0.00029455,2]
[322126580,1712821834443,-150.0,0.00029465,2]
[322126581,1712821834453,-150.0,0.00029475,2]
[322126582,1712821834463,-150.0,0.00029478,2]
[322126583,1712821834473,-1500.0,0.00029495,2]
[322126584,1712821834483,-535.74,0.00029497,2]
[322126585,1712821834492,-169.53966937,0.00029514,2]
[322126586,1712821834502,-151.46810088,0.00029521,2]
[322126587,1712821834513,-150.0,0.00029533,2]
[322126588,1712821834522,-153.94987676,0.00029535,2]
[322126589,1712821834532,-157.041116,0.00029548,8]
[322126590,1712821834545,-978.15953745,0.0002955,2]
[322126591,1712821834555,-150.0,0.00029566,2]
[322126592,1712821834564,-150.0,0.0002958,2]
[322126593,1712821834574,-910.18949285,0.000296,2]
[322126594,1712821834586,-150.0,0.00029606,2]
[322126595,1712821834596,-1500.0,0.00029632,2]
[322126596,1712821834606,-150.0,0.00029633,2]
[322126597,1712821834616,-150.0,0.00029641,2]
[322126598,1712821834628,-157.041116,0.00029648,9]
[322126599,1712821834639,-3762.53989553,0.00029694,2]
[322126600,1712821834649,-150.0,0.00029695,2]
[322126601,1712821834659,-168.65528334,0.00029699,2]
[322126602,1712821834669,-2023.0039,0.000297,3]
[322126603,1712821834678,-2088.5152,0.000297,2]
[322126604,1712821834688,-300.0,0.00029701,2]
[322126605,1712821834698,-150.0,0.00029705,2]
[322126606,1712821834707,-150.0,0.00029708,2]
[322126607,1712821834717,-150.0,0.00029712,2]
[322126608,1712821834727,-150.0,0.00029718,2]
[322126609,1712821834736,-150.0,0.00029719,2]
[322126610,1712821834747,-150.0,0.00029721,2]
[322126611,1712821834756,-150.0,0.00029722,2]
[322126612,1712821834767,-150.0,0.00029724,2]
[322126613,1712821834776,-152.85607004,0.00029724,2]
[322126614,1712821834786,-150.0,0.00029728,2]
[322126615,1712821834796,-150.0,0.00029733,2]
[322126616,1712821834806,-150.0,0.00029733,2]
[322126617,1712821834815,-150.0,0.00029735,2]
[322126618,1712821834825,-150.0,0.00029736,2]
[322126619,1712821834835,-181.28885952,0.00029738,2]
[322126620,1712821834848,-151.46810088,0.00029745,2]
[322126621,1712821834858,-150.0,0.00029746,2]
[322126622,1712821834868,-150.0,0.00029747,2]
[322126623,1712821834878,-157.041116,0.00029748,9]
[322126624,1712821834888,-150.0,0.00029749,2]
[322126625,1712821834902,-150.0,0.0002975,2]
[322126626,1712821834912,-150.0,0.00029752,2]
[322126627,1712821834924,-1000.0,0.0002976,8]
[322126628,1712821834934,-1500.0,0.0002976,2]
[322126629,1712821834943,-150.0,0.00029762,2]
[322126630,1712821834953,-150.0,0.00029763,2]
[322126631,1712821834963,-150.0,0.00029777,2]
[322126632,1712821834972,-150.0,0.00029781,2]
[322126633,1712821834982,-150.0,0.00029781,2]
[322126634,1712821834992,-150.0,0.00029781,2]
[322126635,1712821835002,-150.0,0.00029781,2]
[322126636,1712821835012,-150.0,0.00029785,2]
[322126637,1712821835022,-150.0,0.00029788,2]
[322126638,1712821835032,-1000.0,0.00029789,2]
[322126639,1712821835043,-190.65,0.0002979,2]
[322126640,1712821835053,-15000.0,0.0002979,2]
[322126641,1712821835063,-150.0,0.00029794,2]
[322126642,1712821835073,-1661.18323809,0.00029796,4]
[322126643,1712821835083,-500.0,0.00029797,2]
[322126644,1712821835093,-1000.0,0.00029797,2]
[322126645,1712821835103,-6227.5402,0.00029797,2]
[322126646,1712821835113,-1569.0516,0.00029797,2]
[322126647,1712821835123,-150.0,0.00029797,2]
[322126648,1712821835133,-150.0,0.00029797,2]
[322126649,1712821835143,-150.0,0.00029798,2]
[322126650,1712821835153,-150.0,0.00029799,2]
[322126651,1712821835163,-84745.6483,0.000298,2]
[322126652,1712821835174,-5411.1172,0.000298,2]
[322126653,1712821835184,-159.64981463,0.000298,2]
[322126654,1712821835194,-150.0,0.00029801,2]
[322126655,1712821835203,-150.0,0.00029801,2]
[322126656,1712821835213,-150.0,0.00029801,2]
[322126657,1712821835222,-150.0,0.00029802,2]
[322126658,1712821835232,-150.0,0.00029804,2]
[322126659,1712821835241,-150.0,0.00029806,2]
[322126660,1712821835251,-150.0,0.00029808,2]
[322126661,1712821835261,-150.0,0.00029809,2]
[322126662,1712821835270,-150.0,0.00029813,2]
[322126663,1712821835280,-150.0,0.00029814,2]
[322126664,1712821835290,-181.28885952,0.00029818,2]
[322126665,1712821835300,-150.0,0.00029823,2]
[322126666,1712821835310,-150.0,0.00029826,2]
[322126667,1712821835319,-150.0,0.00029835,2]
[322126668,1712821835329,-150.0,0.00029835,2]
[322126669,1712821835338,-150.0,0.00029841,2]
[322126670,1712821835348,-150.0,0.00029841,2]
[322126671,1712821835358,-150.0,0.00029844,2]
[322126672,1712821835368,-150.0,0.00029849,2]
[322126673,1712821835378,-150.0,0.0002985,2]
[322126674,1712821835387,-150.0,0.00029853,2]
[322126675,1712821835397,-150.0,0.00029858,2]
[322126676,1712821835407,-150.0,0.00029865,2]
[322126677,1712821835417,-303.0,0.00029867,5]
[322126678,1712821835430,-150.0,0.00029868,2]
[322126679,1712821835441,-4569.43262731,0.00029869,2]
[322126680,1712821835451,-150.0,0.00029872,2]
[322126681,1712821835461,-150.0,0.00029876,2]
[322126682,1712821835471,-150.0,0.0002988,2]
[322126683,1712821835480,-150.0,0.00029881,2]
[322126684,1712821835490,-150.0,0.00029881,2]
[322126685,1712821835500,-319.45672021,0.00029881,2]
[322126686,1712821835510,-150.0,0.00029882,2]
[322126687,1712821835520,-150.0,0.00029884,2]
[322126688,1712821835530,-150.0,0.00029884,2]
[322126689,1712821835544,-150.0,0.00029885,2]
[322126690,1712821835554,-300.0,0.0002989,2]
[322126691,1712821835866,-150.0,0.00029892,2]
[322126692,1712821835876,-1680.53225333,0.00029894,2]
[322126693,1712821835885,-155.319273,0.00029895,2]
[322126694,1712821835895,-157.39684031,0.00029896,2]
[322126695,1712821835904,-156.08876119,0.00029896,2]
[322126696,1712821835914,-446.00059271,0.00029896,2]
[322126697,1712821835925,-261.00080718,0.00029896,2]
[322126698,1712821835935,-322.09217481,0.00029896,2]
[322126699,1712821835944,-296.08899939,0.00029896,2]
[322126700,1712821835954,-182.36434992,0.00029896,2]
[322126701,1712821835963,-211.45301069,0.00029896,2]
[322126702,1712821835973,-736.42959233,0.00029896,2]
[322126703,1712821835982,-191.90200664,0.00029896,2]
[322126704,1712821835991,-229.66414078,0.00029896,2]
[322126705,1712821836000,-1265.63184341,0.00029896,2]
[322126706,1712821836010,-159.32807119,0.00029896,2]
[322126707,1712821836019,-1182.77811126,0.00029896,2]
[322126708,1712821836029,-1955.47369817,0.00029896,2]
[322126709,1712821836042,-279.63999998,0.00029896,2]
[322126710,1712821836051,-155.72670318,0.00029896,2]
[322126711,1712821836061,-682.253116,0.00029896,2]
[322126712,1712821836070,-156.21258437,0.00029896,2]
[322126713,1712821836079,-156.29377624,0.00029896,2]
[322126714,1712821836090,-243.41843626,0.00029896,2]
[322126715,1712821836099,-2137.61813026,0.00029896,2]
[322126716,1712821836109,-165.08637651,0.00029896,2]
[322126717,1712821836119,-1742.56076105,0.00029896,2]
[322126718,1712821836129,-479.43175891,0.00029896,2]
[322126719,1712821836138,-601.31088268,0.00029896,2]
[322126720,1712821836147,-200.0,0.00029896,2]
[322126721,1712821836156,-256.2216346,0.00029896,2]
[322126722,1712821836166,-333.99742646,0.00029896,3]
[322126723,1712821836178,-213.58271905,0.00029896,2]
[322126724,1712821836188,-156.15929924,0.00029896,2]
[322126725,1712821836197,-155.46859804,0.00029896,2]
[322126726,1712821836207,-161.0358996,0.00029896,2]
[322126727,1712821836216,-757.4667358,0.00029896,2]
[322126728,1712821836226,-155.76060315,0.00029896,2]
[322126729,1712821836236,-358.74969927,0.00029896,2]
[322126730,1712821836246,-382.6502619,0.00029896,2]
[322126731,1712821836256,-221.28770632,0.00029896,2]
[322126732,1712821836266,-157.0137331,0.00029896,2]
[322126733,1712821836275,-155.66091899,0.00029896,2]
[322126734,1712821836284,-155.84456524,0.00029896,2]
[322126735,1712821836294,-2124.44129545,0.00029896,2]
[322126736,1712821836304,-155.22600808,0.00029896,2]
[322126737,1712821836314,-1296.33667789,0.00029896,2]
[322126738,1712821836323,-155.25265168,0.00029896,2]
[322126739,1712821836334,-155.36561289,0.00029897,2]
[322126740,1712821836344,-2544.91689047,0.00029897,2]
[322126741,1712821836354,-9432.45616107,0.00029898,2]
[322126742,1712821836363,-197.79510196,0.00029898,2]
[322126743,1712821836373,-219.37846537,0.00029898,2]
[322126744,1712821836383,-375.34102279,0.00029898,2]
[322126745,1712821836392,-1284.59567208,0.00029898,2]
[322126746,1712821836402,-8605.38353,0.000299,2]
[322126747,1712821836412,-154861.8346397,0.000299,4]
[322126748,1712821836424,-2000.0,0.000299,2]
[322126749,1712821836434,-200.0,0.000299,2]
[322126750,1712821836443,-151.38857112,0.000299,2]
[322126751,1712821836452,-169.59288491,0.000299,2]
[322126752,1712821836462,-1066.14143,0.000299,2]
[322126753,1712821836472,-8093.34836908,0.000299,2]
[322126754,1712821836482,-150.0,0.00029913,2]
[322126755,1712821836493,-289.65712224,0.00029914,2]
[322126756,1712821836502,-150.0,0.00029918,2]
[322126757,1712821836512,-150.0,0.0002992,2]
[322126758,1712821836522,-1500.0,0.00029923,2]
[322126759,1712821836532,-150.0,0.00029925,2]
[322126760,1712821836547,-150.0,0.00029931,2]
[322126761,1712821836557,-150.0,0.00029932,2]
[322126762,1712821836568,-150.0,0.00029935,2]
[322126763,1712821836579,-18462.0,0.00029943,4]
[322126764,1712821836590,-150.0,0.00029947,2]
[322126765,1712821836600,-150.0,0.00029948,2]
[322126766,1712821836610,-150.0,0.0002995,2]
[322126767,1712821836622,-150.0,0.00029954,2]
[322126768,1712821836633,-150.0,0.00029955,2]
[322126769,1712821836643,-150.0,0.00029957,2]
[322126770,1712821836654,-150.0,0.00029958,2]
[322126771,1712821836664,-150.0,0.00029959,2]
[322126772,1712821836681,-150.0,0.00029961,2]
[322126773,1712821836691,-150.0,0.00029964,2]
[322126774,1712821836701,-150.0,0.00029965,2]
[322126775,1712821836712,-150.0,0.00029966,2]
[322126776,1712821836721,-180.80177664,0.00029987,2]
[322126777,1712821836732,-50475.62623625,0.00029992,2]
[322126778,1712821837309,-28585.03678655,0.00029992,2]
[322126779,1712821837318,-2370.3852966,0.00029992,2]
[322126780,1712821837327,-9898.5663365,0.00029996,2]
[322126781,1712821837337,-23286.82891403,0.00029997,2]
[322126782,1712821837347,-1694.05695018,0.00029998,2]
[322126783,1712821837357,-196.08675948,0.00029999,2]
[322126784,1712821837366,-206.59266165,0.00029999,2]
[322126785,1712821837376,-5827.91546642,0.00029999,2]
[322126786,1712821837386,-500.0,0.00029999,2]
[322126787,1712821837395,-507.79682154,0.00029999,2]
[322126788,1712821837405,-500.0,0.00029999,2]
[322126789,1712821837414,-502.449932,0.00029999,2]
[322126790,1712821837426,-8906.58494505,0.0003,2]
[322126875,1712821838718,-3932.35841878,0.0003,2]
[322126877,1712821838731,-2787.01991534,0.0003,2]
[322126883,1712821838775,-1560.84896908,0.0003,2]
[322126898,1712821840178,-150.0,0.00029737,2]
[322126899,1712821840187,-150.0,0.0002974,2]
[322126900,1712821840196,-150.0,0.00029744,2]
[322126901,1712821840205,-150.0,0.00029762,2]
[322126902,1712821840213,-150.0,0.00029768,2]